fUSD/lending_fUSD_20241223
["ID","MTS","AMOUNT","RATE_DAILY","PERIOD"]
[346477924,1734994234574,-500.0,0.00013698,2]
[346477925,1734994234583,-500.0,0.00013698,2]
[346477926,1734994234594,-500.0,0.00013698,2]
[346477927,1734994234603,-500.0,0.00013698,2]
[346477928,1734994234613,-500.0,0.00013698,2]
[346477929,1734994234622,-500.0,0.00013698,2]
[346477930,1734994234631,-500.0,0.00013698,2]
[346477931,1734994234640,-500.0,0.00013698,2]
[346477932,1734994234649,-680.72,0.00013698,2]
[346477933,1734994234659,-500.0,0.00013698,2]
[346477934,1734994234668,-932.28,0.00013698,2]
[346477935,1734994234676,-908.14,0.00013698,2]
[346477936,1734994234685,-500.0,0.00013698,2]
[346477937,1734994234695,-500.0,0.00013698,2]
[346477938,1734994234704,-688.85,0.00013698,2]
[346477939,1734994234713,-789.86,0.00013698,2]
[346477940,1734994234722,-500.0,0.00013698,2]
[346477941,1734994234731,-500.0,0.00013698,2]
[346477942,1734994234740,-500.0,0.00013698,2]
[346477943,1734994234749,-690.64,0.00013698,2]
[346477944,1734994234758,-500.0,0.00013698,2]
[346477945,1734994234767,-500.0,0.00013698,2]
[346477946,1734994234776,-500.0,0.00013698,2]
[346477947,1734994234785,-500.0,0.00013698,2]
[346477948,1734994234794,-500.0,0.00013698,2]
[346477949,1734994234803,-527.09,0.00013698,2]
[346477950,1734994234812,-500.0,0.00013698,2]
[346477951,1734994234821,-500.0,0.00013698,2]
[346477952,1734994234830,-500.0,0.00013698,2]
[346477953,1734994234839,-500.0,0.00013698,2]
[346477954,1734994234848,-500.0,0.00013698,2]
[346477955,1734994234857,-500.0,0.00013698,2]
[346477956,1734994234866,-500.0,0.00013698,2]
[346477957,1734994234875,-857.54,0.00013698,2]
[346477958,1734994234884,-343.26440076,0.00013698,2]
[346477959,1734994234894,-500.0,0.00013698,2]
[346477960,1734994234903,-500.0,0.00013698,2]
[346477961,1734994234912,-500.0,0.00013698,2]
[346477962,1734994234921,-838.4,0.00013698,2]
[346477963,1734994234931,-743.03,0.00013698,2]
[346477964,1734994234941,-677.83,0.00013698,2]
[346477965,1734994234950,-500.0,0.00013698,2]
[346477966,1734994234959,-500.0,0.00013698,2]
[346477967,1734994234968,-500.0,0.00013698,2]
[346477968,1734994234978,-500.0,0.00013698,2]
[346477969,1734994234987,-500.0,0.00013698,2]
[346477970,1734994234996,-974.97,0.00013698,2]
[346477971,1734994235005,-500.0,0.00013698,2]
[346477972,1734994235015,-500.0,0.00013698,2]
[346477973,1734994235024,-500.0,0.00013698,2]
[346477974,1734994235034,-682.27,0.00013698,2]
[346477975,1734994235043,-620.83,0.00013698,2]
[346477976,1734994235052,-500.0,0.00013698,2]
[346477977,1734994235061,-500.0,0.00013698,2]
[346477978,1734994235071,-517.18,0.00013698,2]
[346477979,1734994235080,-1034.77,0.00013698,2]
[346477980,1734994235090,-500.0,0.00013698,2]
[346477981,1734994235099,-500.0,0.00013698,2]
[346477982,1734994235108,-500.0,0.00013698,2]
[346477983,1734994235117,-500.0,0.00013698,2]
[346477984,1734994235127,-687.98,0.00013698,2]
[346477985,1734994235137,-623.92,0.00013698,2]
[346477986,1734994235146,-500.0,0.00013698,2]
[346477987,1734994235155,-500.0,0.00013698,2]
[346477988,1734994235164,-500.0,0.00013698,2]
[346477989,1734994235173,-914.74,0.00013698,2]
[346477990,1734994235182,-500.0,0.00013698,2]
[346477991,1734994235191,-500.0,0.00013698,2]
[346477992,1734994235200,-500.0,0.00013698,2]
[346477993,1734994235209,-500.0,0.00013698,2]
[346477994,1734994235218,-500.0,0.00013698,2]
[346477995,1734994235227,-500.0,0.00013698,2]
[346477996,1734994235236,-500.0,0.00013698,2]
[346477997,1734994235245,-954.12,0.00013698,2]
[346477998,1734994235254,-258.512329,0.00013698,2]
[346477999,1734994235263,-258.512329,0.00013698,2]
[346478000,1734994235272,-258.512329,0.00013698,2]
[346478001,1734994235281,-502.23,0.00013698,2]
[346478002,1734994235291,-500.0,0.00013698,2]
[346478003,1734994235300,-500.0,0.00013698,2]
[346478004,1734994235310,-500.0,0.00013698,2]
[346478005,1734994235319,-500.0,0.00013698,2]
[346478006,1734994235328,-500.0,0.00013698,2]
[346478007,1734994235337,-500.0,0.00013698,2]
[346478008,1734994235346,-854.32,0.00013698,2]
[346478009,1734994235355,-500.0,0.00013698,2]
[346478010,1734994235368,-1657.5,0.00013698,2]
[346478011,1734994235378,-500.0,0.00013698,2]
[346478012,1734994235387,-500.0,0.00013698,2]
[346478013,1734994235397,-768.98,0.00013698,2]
[346478014,1734994235407,-515.4904408,0.00013698,2]
[346478015,1734994235416,-500.0,0.00013698,2]
[346478016,1734994235425,-1147.66,0.00013698,2]
[346478017,1734994235435,-917.47,0.00013698,2]
[346478018,1734994235445,-500.0,0.00013698,2]
[346478019,1734994235456,-500.0,0.00013698,2]
[346478020,1734994235465,-932.23,0.00013698,2]
[346478021,1734994235475,-500.0,0.00013698,2]
[346478022,1734994235484,-500.0,0.00013698,2]
[346478023,1734994235493,-500.0,0.00013698,2]
[346478024,1734994235502,-900.35,0.00013698,2]
[346478025,1734994235511,-576.61829911,0.00013698,2]
[346478026,1734994235521,-256.41195038,0.00013698,2]
[346478027,1734994235530,-1121.03,0.00013698,2]
[346478028,1734994235540,-708.75,0.00013698,2]
[346478029,1734994235549,-498.90339646,0.00013698,2]
[346478030,1734994235558,-813.32,0.00013698,2]
[346478031,1734994235567,-1038.62,0.00013698,2]
[346478032,1734994235576,-1655.23,0.00013698,2]
[346478033,1734994235586,-741.06,0.00013698,2]
[346478034,1734994235595,-615.49,0.00013698,2]
[346478035,1734994235605,-500.0,0.00013698,2]
[346478036,1734994235614,-1401.75,0.00013698,2]
[346478037,1734994235624,-500.0,0.00013698,2]
[346478038,1734994235634,-587.91,0.00013698,2]
[346478039,1734994235643,-500.0,0.00013698,2]
[346478040,1734994235653,-500.0,0.00013698,2]
[346478041,1734994235662,-567.74,0.00013698,2]
[346478042,1734994235672,-500.0,0.00013698,2]
[346478043,1734994235682,-511.98,0.00013698,2]
[346478044,1734994235691,-646.29,0.00013698,2]
[346478045,1734994235700,-542.65,0.00013698,2]
[346478046,1734994235710,-500.0,0.00013698,2]
[346478047,1734994235720,-500.0,0.00013698,2]
[346478048,1734994235729,-667.21,0.00013698,2]
[346478049,1734994235739,-930.71,0.00013698,2]
[346478050,1734994235748,-1232.18,0.00013698,2]
[346478051,1734994235757,-500.0,0.00013698,2]
[346478052,1734994235767,-513.54,0.00013698,2]
[346478053,1734994235777,-1234.51,0.00013698,2]
[346478054,1734994235786,-500.0,0.00013698,2]
[346478055,1734994235795,-500.0,0.00013698,2]
[346478056,1734994235805,-838.69,0.00013698,2]
[346478057,1734994235814,-1611.8,0.00013698,2]
[346478058,1734994235823,-500.0,0.00013698,2]
[346478059,1734994235833,-500.0,0.00013698,2]
[346478060,1734994235843,-1372.06,0.00013698,2]
[346478061,1734994235852,-732.62,0.00013698,2]
[346478062,1734994235862,-571.62,0.00013698,2]
[346478063,1734994235872,-620.07,0.00013698,2]
[346478064,1734994235883,-680.43,0.00013698,2]
[346478065,1734994235892,-809.86,0.00013698,2]
[346478066,1734994235902,-1344.02,0.00013698,2]
[346478067,1734994235912,-1466.8,0.00013698,2]
[346478068,1734994235921,-1534.73,0.00013698,2]
[346478069,1734994235931,-1585.71,0.00013698,2]
[346478070,1734994235940,-500.0,0.00013698,2]
[346478071,1734994235949,-1091.25,0.00013698,2]
[346478072,1734994235958,-587.88,0.00013698,2]
[346478073,1734994235967,-623.7,0.00013698,2]
[346478074,1734994235977,-899.22,0.00013698,2]
[346478075,1734994235987,-500.0,0.00013698,2]
[346478076,1734994235996,-151.0,0.00013698,2]
[346478077,1734994236006,-151.0,0.00013698,2]
[346478078,1734994236016,-151.0,0.00013698,2]
[346478079,1734994236025,-346.533882,0.00013698,2]
[346478080,1734994236034,-1178.9,0.00013698,2]
[346478081,1734994236044,-346.533882,0.00013698,2]
[346478082,1734994236053,-346.533882,0.00013698,2]
[346478083,1734994236063,-539.13,0.00013698,2]
[346478084,1734994236074,-500.0,0.00013698,2]
[346478085,1734994236083,-911.82,0.00013698,2]
[346478086,1734994236093,-500.0,0.00013698,2]
[346478087,1734994236102,-346.533882,0.00013698,2]
[346478088,1734994236112,-346.533882,0.00013698,2]
[346478089,1734994236122,-346.533882,0.00013698,2]
[346478090,1734994236132,-838.08,0.00013698,2]
[346478091,1734994236141,-687.17,0.00013698,2]
[346478092,1734994236150,-778.94,0.00013698,2]
[346478093,1734994236160,-500.0,0.00013698,2]
[346478094,1734994236169,-853.9,0.00013698,2]
[346478095,1734994236179,-500.0,0.00013698,2]
[346478096,1734994236188,-670.81,0.00013698,2]
[346478097,1734994236197,-500.0,0.00013698,2]
[346478098,1734994236208,-791.95,0.00013698,2]
[346478099,1734994236217,-500.0,0.00013698,2]
[346478100,1734994236227,-874.28,0.00013698,2]
[346478101,1734994236236,-907.94,0.00013698,2]
[346478102,1734994236246,-652.75,0.00013698,2]
[346478103,1734994236255,-500.0,0.00013698,2]
[346478104,1734994236264,-841.05,0.00013698,2]
[346478105,1734994236273,-500.0,0.00013698,2]
[346478106,1734994236283,-1421.32,0.00013698,2]
[346478107,1734994236292,-506.04143414,0.00013698,2]
[346478108,1734994236301,-500.0,0.00013698,2]
[346478109,1734994236311,-500.0,0.00013698,2]
[346478110,1734994236320,-500.0,0.00013698,2]
[346478111,1734994236330,-625.437085,0.00013698,2]
[346478112,1734994236339,-500.0,0.00013698,2]
[346478113,1734994236348,-500.0,0.00013698,2]
[346478114,1734994236358,-776.56,0.00013698,2]
[346478115,1734994236371,-843.98,0.00013698,2]
[346478116,1734994236380,-1607.71,0.00013698,2]
[346478117,1734994236390,-604.35,0.00013698,2]
[346478118,1734994236399,-1328.16,0.00013698,2]
[346478119,1734994236409,-329.090771,0.00013698,2]
[346478120,1734994236418,-329.090771,0.00013698,2]
[346478121,1734994236428,-329.090771,0.00013698,2]
[346478122,1734994236437,-500.0,0.00013698,2]
[346478123,1734994236447,-329.090771,0.00013698,2]
[346478124,1734994236457,-329.090771,0.00013698,2]
[346478125,1734994236467,-329.090771,0.00013698,2]
[346478126,1734994236476,-501.03,0.00013698,2]
[346478127,1734994236486,-504.46,0.00013698,2]
[346478128,1734994236495,-500.0,0.00013698,2]
[346478129,1734994236505,-1377.9,0.00013698,2]
[346478130,1734994236515,-500.0,0.00013698,2]
[346478131,1734994236525,-500.0,0.00013698,2]
[346478132,1734994236534,-1070.82,0.00013698,2]
[346478133,1734994236543,-500.0,0.00013698,2]
[346478134,1734994236553,-1178.16,0.00013698,2]
[346478135,1734994236563,-700.86,0.00013698,2]
[346478136,1734994236572,-500.0,0.00013698,2]
[346478137,1734994236582,-822.94,0.00013698,2]
[346478138,1734994236591,-500.0,0.00013698,2]
[346478139,1734994236600,-912.06,0.00013698,2]
[346478140,1734994236610,-1616.21,0.00013698,2]
[346478141,1734994236619,-726.64,0.00013698,2]
[346478142,1734994236629,-500.0,0.00013698,2]
[346478143,1734994236639,-661.67,0.00013698,2]
[346478144,1734994236648,-500.0,0.00013698,2]
[346478145,1734994236658,-855.17,0.00013698,2]
[346478146,1734994236667,-503.03795039,0.00013698,2]
[346478147,1734994236677,-1667.54,0.00013698,2]
[346478148,1734994236687,-636.38,0.00013698,2]
[346478149,1734994236696,-702.16,0.00013698,2]
[346478150,1734994236705,-500.0,0.00013698,2]
[346478151,1734994236716,-1519.05,0.00013698,2]
[346478152,1734994236725,-151.0,0.00013698,2]
[346478153,1734994236735,-1771.64,0.00013698,2]
[346478154,1734994236745,-500.0,0.00013698,2]
[346478155,1734994236754,-151.0,0.00013698,2]
[346478156,1734994236764,-151.0,0.00013698,2]
[346478157,1734994236773,-500.0,0.00013698,2]
[346478158,1734994236782,-151.0,0.00013698,2]
[346478159,1734994236791,-1014.09,0.00013698,2]
[346478160,1734994236800,-151.0,0.00013698,2]
[346478161,1734994236809,-151.0,0.00013698,2]
[346478162,1734994236820,-500.0,0.00013698,2]
[346478163,1734994236829,-500.0,0.00013698,2]
[346478164,1734994236839,-500.0,0.00013698,2]
[346478165,1734994236848,-554.30483031,0.00013698,2]
[346478166,1734994236857,-500.0,0.00013698,2]
[346478167,1734994236867,-500.0,0.00013698,2]
[346478168,1734994236876,-500.0,0.00013698,2]
[346478169,1734994236886,-1528.34,0.00013698,2]
[346478170,1734994236895,-500.0,0.00013698,2]
[346478171,1734994236904,-1151.35,0.00013698,2]
[346478172,1734994236914,-904.52,0.00013698,2]
[346478173,1734994236923,-500.0,0.00013698,2]
[346478174,1734994236932,-1006.91,0.00013698,2]
[346478175,1734994236942,-500.0,0.00013698,2]
[346478176,1734994236951,-500.0,0.00013698,2]
[346478177,1734994236961,-500.0,0.00013698,2]
[346478178,1734994236970,-500.0,0.00013698,2]
[346478179,1734994236980,-527.64,0.00013698,2]
[346478180,1734994236989,-151.0,0.00013698,2]
[346478181,1734994236998,-151.0,0.00013698,2]
[346478182,1734994237008,-151.0,0.00013698,2]
[346478183,1734994237017,-1629.73,0.00013698,2]
[346478184,1734994237027,-661.64,0.00013698,2]
[346478185,1734994237036,-199.65218859,0.00013698,2]
[346478186,1734994237045,-810.27,0.00013698,2]
[346478187,1734994237054,-500.0,0.00013698,2]
[346478188,1734994237063,-500.0,0.00013698,2]
[346478189,1734994237072,-500.0,0.00013698,2]
[346478190,1734994237081,-837.48,0.00013698,2]
[346478191,1734994237091,-550.13,0.00013698,2]
[346478192,1734994237100,-500.0,0.00013698,2]
[346478193,1734994237109,-500.0,0.00013698,2]
[346478194,1734994237119,-1583.74,0.00013698,2]
[346478195,1734994237128,-151.0,0.00013698,2]
[346478196,1734994237137,-500.0,0.00013698,2]
[346478197,1734994237146,-151.0,0.00013698,2]
[346478198,1734994237155,-151.0,0.00013698,2]
[346478199,1734994237164,-500.0,0.00013698,2]
[346478200,1734994237173,-783.53,0.00013698,2]
[346478201,1734994237182,-500.0,0.00013698,2]
[346478202,1734994237191,-500.0,0.00013698,2]
[346478203,1734994237200,-500.0,0.00013698,2]
[346478204,1734994237209,-151.0,0.00013698,2]
[346478205,1734994237218,-151.0,0.00013698,2]
[346478206,1734994237227,-500.0,0.00013698,2]
[346478207,1734994237236,-501.36225991,0.00013698,2]
[346478208,1734994237245,-545.31,0.00013698,2]
[346478209,1734994237254,-500.0,0.00013698,2]
[346478210,1734994237263,-535.52218681,0.00013698,2]
[346478211,1734994237272,-757.01,0.00013698,2]
[346478212,1734994237280,-1239.88,0.00013698,2]
[346478213,1734994237289,-1026.57,0.00013698,2]
[346478214,1734994237298,-151.0,0.00013698,2]
[346478215,1734994237308,-151.0,0.00013698,2]
[346478216,1734994237317,-151.0,0.00013698,2]
[346478217,1734994237326,-500.0,0.00013698,2]
[346478218,1734994237336,-500.0,0.00013698,2]
[346478219,1734994237345,-500.0,0.00013698,2]
[346478220,1734994237354,-151.0,0.00013698,2]
[346478221,1734994237364,-500.0,0.00013698,2]
[346478222,1734994237379,-500.0,0.00013698,2]
[346478223,1734994237389,-737.96,0.00013698,2]
[346478224,1734994237399,-500.0,0.00013698,2]
[346478225,1734994237409,-503.6613251,0.00013698,2]
[346478226,1734994237418,-500.0,0.00013698,2]
[346478227,1734994237427,-500.0,0.00013698,2]
[346478228,1734994237436,-813.29,0.00013698,2]
[346478229,1734994237665,-563.16,0.00013698,2]
[346478230,1734994237675,-500.0,0.00013698,2]
[346478231,1734994237684,-500.0,0.00013698,2]
[346478232,1734994237693,-784.29,0.00013698,2]
[346478233,1734994237702,-500.0,0.00013698,2]
[346478234,1734994237711,-500.0,0.00013698,2]
[346478235,1734994237720,-500.0,0.00013698,2]
[346478236,1734994237730,-765.69,0.00013698,2]
[346478237,1734994237739,-500.0,0.00013698,2]
[346478238,1734994237749,-500.0,0.00013698,2]
[346478239,1734994237758,-649.18,0.00013698,2]
[346478240,1734994237767,-500.0,0.00013698,2]
[346478241,1734994237776,-650.97,0.00013698,2]
[346478242,1734994237785,-1144.45,0.00013698,2]
[346478243,1734994237795,-500.0,0.00013698,2]
[346478244,1734994237804,-697.03,0.00013698,2]
[346478245,1734994237812,-500.0,0.00013698,2]
[346478246,1734994237822,-521.87,0.00013698,2]
[346478247,1734994237831,-151.0,0.00013698,2]
[346478248,1734994237840,-151.0,0.00013698,2]
[346478249,1734994237850,-701.88,0.00013698,2]
[346478250,1734994237859,-151.0,0.00013698,2]
[346478251,1734994237868,-1773.43,0.00013698,2]
[346478252,1734994237877,-913.26,0.00013698,2]
[346478253,1734994237887,-319.72582711,0.00013698,2]
[346478254,1734994237896,-362.43466516,0.00013698,2]
[346478255,1734994237905,-923.35,0.00013698,2]
[346478256,1734994237914,-1765.27,0.00013698,2]
[346478257,1734994237923,-500.0,0.00013698,2]
[346478258,1734994237932,-500.0,0.00013698,2]
[346478259,1734994237941,-500.0,0.00013698,2]
[346478260,1734994237950,-1029.68,0.00013698,2]
[346478261,1734994237959,-881.21,0.00013698,2]
[346478262,1734994237968,-1348.65,0.00013698,2]
[346478263,1734994237977,-500.0,0.00013698,2]
[346478264,1734994237986,-151.0,0.00013698,2]
[346478265,1734994237995,-151.0,0.00013698,2]
[346478266,1734994238004,-428.573174,0.00013698,2]
[346478267,1734994238013,-151.60302,0.00013698,2]
[346478268,1734994238022,-428.573174,0.00013698,2]
[346478269,1734994238031,-428.573174,0.00013698,2]
[346478270,1734994238040,-500.0,0.00013698,2]
[346478271,1734994238049,-500.0,0.00013698,2]
[346478272,1734994238058,-428.573174,0.00013698,2]
[346478273,1734994238067,-1175.74,0.00013698,2]
[346478274,1734994238076,-428.573174,0.00013698,2]
[346478275,1734994238085,-428.573174,0.00013698,2]
[346478276,1734994238095,-1072.32,0.00013698,2]
[346478277,1734994238104,-581.16,0.00013698,2]
[346478278,1734994238113,-917.3,0.00013698,2]
[346478279,1734994238122,-500.0,0.00013698,2]
[346478280,1734994238131,-500.0,0.00013698,2]
[346478281,1734994238140,-828.82,0.00013698,2]
[346478282,1734994238150,-500.0,0.00013698,2]
[346478283,1734994238159,-500.0,0.00013698,2]
[346478284,1734994238168,-500.0,0.00013698,2]
[346478285,1734994238177,-1034.39,0.00013698,2]
[346478287,1734994238187,-500.0,0.00013698,2]
[346478288,1734994238195,-500.0,0.00013698,2]
[346478289,1734994238204,-500.0,0.00013698,2]
[346478290,1734994238213,-500.0,0.00013698,2]
[346478291,1734994238222,-500.0,0.00013698,2]
[346478292,1734994238232,-1577.98,0.00013698,2]
[346478293,1734994238241,-946.3,0.00013698,2]
[346478295,1734994238250,-1226.22,0.00013698,2]
[346478296,1734994238259,-670.16,0.00013698,2]
[346478297,1734994238268,-783.34,0.00013698,2]
[346478298,1734994238277,-151.0,0.00013698,2]
[346478299,1734994238286,-816.56,0.00013698,2]
[346478300,1734994238295,-151.0,0.00013698,2]
[346478301,1734994238304,-383.29440181,0.00013698,2]
[346478302,1734994238313,-151.0,0.00013698,2]
[346478303,1734994238323,-151.0,0.00013698,2]
[346478304,1734994238332,-500.0,0.00013698,2]
[346478305,1734994238341,-151.0,0.00013698,2]
[346478306,1734994238351,-151.0,0.00013698,2]
[346478307,1734994238361,-2081.19,0.00013698,2]
[346478308,1734994238377,-151.0,0.00013698,2]
[346478309,1734994238387,-151.0,0.00013698,2]
[346478310,1734994238396,-151.0,0.00013698,2]
[346478311,1734994238406,-151.0,0.00013698,2]
[346478312,1734994238415,-151.0,0.00013698,2]
[346478313,1734994238424,-151.0,0.00013698,2]
[346478314,1734994238434,-151.0,0.00013698,2]
[346478315,1734994238445,-297.083431,0.00013698,2]
[346478316,1734994238454,-680.96,0.00013698,2]
[346478317,1734994238464,-683.49,0.00013698,2]
[346478318,1734994238473,-514.33974795,0.00013698,2]
[346478319,1734994238483,-151.0,0.00013698,2]
[346478320,1734994238492,-151.0,0.00013698,2]
[346478321,1734994238501,-810.03,0.00013698,2]
[346478322,1734994238510,-500.0,0.00013698,2]
[346478323,1734994238520,-151.0,0.00013698,2]
[346478324,1734994238529,-500.0,0.00013698,2]
[346478325,1734994238539,-527.61,0.00013698,2]
[346478326,1734994238548,-151.0,0.00013698,2]
[346478327,1734994238557,-151.0,0.00013698,2]
[346478328,1734994238567,-3271.1,0.00013698,2]
[346478329,1734994238577,-500.76,0.00013698,2]
[346478330,1734994238586,-1867.08,0.00013698,2]
[346478331,1734994238596,-1747.64,0.00013698,2]
[346478332,1734994238605,-602.88,0.00013698,2]
[346478333,1734994238615,-2823.61,0.00013698,2]
[346478334,1734994238624,-500.0,0.00013698,2]
[346478335,1734994238633,-670.12,0.00013698,2]
[346478336,1734994238643,-1730.2,0.00013698,2]
[346478337,1734994238652,-500.0,0.00013698,2]
[346478338,1734994238661,-500.0,0.00013698,2]
[346478339,1734994238671,-1012.45,0.00013698,2]
[346478340,1734994238680,-500.0,0.00013698,2]
[346478341,1734994238689,-500.0,0.00013698,2]
[346478342,1734994238698,-866.88,0.00013698,2]
[346478343,1734994238708,-617.61,0.00013698,2]
[346478344,1734994238717,-500.0,0.00013698,2]
[346478345,1734994238726,-916.03,0.00013698,2]
[346478346,1734994238735,-1282.58,0.00013698,2]
[346478347,1734994238743,-500.0,0.00013698,2]
[346478348,1734994238752,-759.39,0.00013698,2]
[346478349,1734994238761,-500.0,0.00013698,2]
[346478350,1734994238771,-2822.91,0.00013698,2]
[346478351,1734994238780,-2702.86,0.00013698,2]
[346478352,1734994238789,-500.0,0.00013698,2]
[346478353,1734994238798,-945.82,0.00013698,2]
[346478354,1734994238807,-860.56,0.00013698,2]
[346478355,1734994238816,-1535.62,0.00013698,2]
[346478356,1734994238826,-1192.87,0.00013698,2]
[346478357,1734994238835,-500.0,0.00013698,2]
[346478358,1734994238844,-151.0,0.00013698,2]
[346478359,1734994238853,-151.0,0.00013698,2]
[346478360,1734994238862,-151.0,0.00013698,2]
[346478361,1734994238871,-151.0,0.00013698,2]
[346478362,1734994238880,-500.0,0.00013698,2]
[346478363,1734994238892,-151.0,0.00013698,2]
[346478364,1734994238901,-151.0,0.00013698,2]
[346478365,1734994238910,-151.0,0.00013698,2]
[346478366,1734994238919,-151.0,0.00013698,2]
[346478367,1734994238929,-500.0,0.00013698,2]
[346478368,1734994238938,-5687.76,0.00013698,2]
[346478369,1734994238948,-1436.13,0.00013698,2]
[346478370,1734994238957,-500.0,0.00013698,2]
[346478371,1734994238966,-500.0,0.00013698,2]
[346478372,1734994238975,-9709.27,0.00013698,2]
[346478373,1734994238984,-500.0,0.00013698,2]
[346478374,1734994238993,-500.0,0.00013698,2]
[346478375,1734994239002,-505.55,0.00013698,2]
[346478376,1734994239011,-500.0,0.00013698,2]
[346478377,1734994239020,-544.6,0.00013698,2]
[346478378,1734994239030,-500.0,0.00013698,2]
[346478379,1734994239039,-500.0,0.00013698,2]
[346478380,1734994239048,-500.0,0.00013698,2]
[346478381,1734994239057,-4532.78,0.00013698,2]
[346478382,1734994239066,-500.0,0.00013698,2]
[346478383,1734994239075,-816.85,0.00013698,2]
[346478384,1734994239085,-500.0,0.00013698,2]
[346478385,1734994239094,-155.367326,0.00013698,2]
[346478386,1734994239103,-500.0,0.00013698,2]
[346478387,1734994239113,-1565.850996,0.00013698,2]
[346478388,1734994239121,-2193.05,0.00013698,2]
[346478389,1734994239130,-890.71,0.00013698,2]
[346478390,1734994239141,-500.0,0.00013698,2]
[346478391,1734994239150,-500.0,0.00013698,2]
[346478392,1734994239158,-935.33,0.00013698,2]
[346478393,1734994239167,-500.0,0.00013698,2]
[346478394,1734994239178,-924.6,0.00013698,2]
[346478395,1734994239190,-1741.469511,0.00013698,2]
[346478396,1734994239199,-707.310492,0.00013698,2]
[346478397,1734994239208,-151.0,0.00013698,2]
[346478398,1734994239219,-414.73583015,0.00013698,2]
[346478399,1734994239227,-707.310492,0.00013698,2]
[346478400,1734994239237,-151.0,0.00013698,2]
[346478401,1734994239246,-1424.69,0.00013698,2]
[346478402,1734994239255,-707.310492,0.00013698,2]
[346478403,1734994239264,-151.0,0.00013698,2]
[346478404,1734994239273,-707.310492,0.00013698,2]
[346478405,1734994239282,-151.0,0.00013698,2]
[346478406,1734994239291,-513.35,0.00013698,2]
[346478407,1734994239300,-500.0,0.00013698,2]
[346478408,1734994239309,-707.310492,0.00013698,2]
[346478409,1734994239318,-707.310492,0.00013698,2]
[346478410,1734994239326,-707.310492,0.00013698,2]
[346478411,1734994239335,-707.310492,0.00013698,2]
[346478412,1734994239344,-1656.35,0.00013698,2]
[346478413,1734994239353,-151.0,0.00013698,2]
[346478414,1734994239362,-832.6,0.00013698,2]
[346478415,1734994239374,-151.0,0.00013698,2]
[346478416,1734994239384,-151.0,0.00013698,2]
[346478417,1734994239393,-151.0,0.00013698,2]
[346478418,1734994239402,-500.0,0.00013698,2]
[346478419,1734994239412,-7626.12,0.00013698,2]
[346478420,1734994239421,-203.931337,0.00013698,2]
[346478421,1734994239430,-500.0,0.00013698,2]
[346478422,1734994239439,-632.69,0.00013698,2]
[346478423,1734994239450,-1545.09,0.00013698,2]
[346478424,1734994239459,-500.0,0.00013698,2]
[346478425,1734994239468,-508.13,0.00013698,2]